bitfinex/quotes_SOLUSD_20230120
["timestamp","ask_amount","ask_price","bid_price","bid_amount"]
[1674195408036,0.96,20.989,20.983,35.75]
[1674195408246,0.96,20.988,20.982,117.988]
[1674195408443,0.96,20.987,20.982,117.988]
[1674195408773,0.96,20.986,20.983,10.0]
[1674195408982,0.96,20.986,20.982,117.988]
[1674195409304,0.96,20.986,20.983,10.0]
[1674195409827,35.73,20.995,20.983,10.0]
[1674195410014,18.92,20.994,20.983,10.0]
[1674195410225,17.0,20.994,20.983,10.0]
[1674195410448,35.72,20.998,20.983,10.0]
[1674195410668,20.0,20.997,20.983,45.75]
[1674195411177,20.0,21.001,20.983,45.75]
[1674195411387,35.72,21.0,20.983,45.75]
[1674195411710,20.0,20.999,20.983,45.75]
[1674195411930,18.92,20.998,20.983,45.75]
[1674195412126,20.0,20.997,20.983,45.75]
[1674195412334,18.92,20.996,20.983,10.0]
[1674195412558,18.92,20.996,20.985,10.0]
[1674195412747,17.96,20.996,20.985,10.0]
[1674195413479,17.96,20.996,20.986,35.74]
[1674195413685,17.96,20.996,20.987,10.0]
[1674195414128,0.96,20.995,20.987,10.0]
[1674195414318,0.96,20.994,20.987,10.0]
[1674195416235,0.96,20.994,20.989,10.0]
[1674195420219,0.96,20.993,20.989,10.0]
[1674195420444,0.96,20.992,20.989,10.0]
[1674195420651,0.96,20.991,20.989,10.0]
[1674195421591,0.96,20.99,20.987,10.0]
[1674195421805,0.96,20.989,20.987,10.0]
[1674195424120,17.0,20.996,20.987,10.0]
[1674195424518,1.92,20.995,20.987,10.0]
[1674195431988,1.92,20.995,20.986,10.0]
[1674195433040,18.92,20.995,20.986,10.0]
[1674195433353,1.92,20.995,20.986,10.0]
[1674195434199,17.0,20.997,20.986,10.0]
[1674195434396,17.0,20.999,20.986,10.0]
[1674195434603,35.71,21.002,20.986,10.0]
[1674195434815,35.71,21.007,20.987,55.74]
[1674195435035,35.7,21.009,20.988,10.0]
[1674195435226,20.0,21.008,20.989,35.74]
[1674195435437,35.71,21.007,20.989,35.74]
[1674195435659,35.71,21.007,20.99,10.0]
[1674195436075,35.71,21.007,20.991,35.73]
[1674195436511,45.7,21.013,20.991,35.73]
[1674195436707,35.69,21.017,20.992,20.0]
[1674195436918,59.44576951,21.019,20.993,146.3619]
[1674195437128,59.44576951,21.019,20.994,20.0]
[1674195437347,35.69,21.019,20.995,35.73]
[1674195437554,23.75576951,21.02,20.995,35.73]
[1674195437768,55.69,21.019,20.996,20.0]
[1674195437953,55.69,21.019,20.997,35.72]
[1674195438170,17.96,21.018,20.998,20.0]
[1674195438393,56.65,21.017,20.999,35.72]
[1674195438716,17.96,21.016,20.999,35.72]
[1674195438910,0.96,21.015,21.0,10.0]
[1674195439120,0.96,21.014,21.0,10.0]
[1674195439361,0.96,21.013,21.0,10.0]
[1674195439555,36.66,21.012,20.996,10.0]
[1674195439769,47.96,21.011,20.996,10.0]
[1674195440002,36.66,21.01,20.996,10.0]
[1674195440313,37.96,21.009,20.996,10.0]
[1674195440526,0.96,21.008,20.996,10.0]
[1674195440722,0.96,21.007,20.996,10.0]
[1674195440938,0.96,21.006,20.996,10.0]
[1674195441259,0.96,21.005,20.996,10.0]
[1674195441457,0.96,21.004,20.996,10.0]
[1674195441669,0.96,21.003,20.996,10.0]
[1674195441983,0.96,21.002,20.996,10.0]
[1674195442413,0.96,21.001,20.996,10.0]
[1674195442627,0.96,21.0,20.996,10.0]
[1674195443448,37.0,21.009,20.996,10.0]
[1674195443658,1.92,21.008,20.996,10.0]
[1674195445991,20.0,21.009,20.996,10.0]
[1674195446179,20.0,21.011,20.994,45.73]
[1674195446391,20.0,21.011,20.993,120.6319]
[1674195446392,35.7,21.01,20.993,120.6319]
[1674195446601,20.0,21.009,20.993,120.6319]
[1674195446929,10.0,21.007,20.993,120.6319]
[1674195447143,36.67,21.006,20.988,10.0]
[1674195447344,22.55178,21.005,20.986,115.7952]
[1674195447556,61.26178,21.004,20.986,115.7952]
[1674195447769,21.59178,21.003,20.986,115.7952]
[1674195447986,71.26178,21.002,20.986,115.7952]
[1674195448302,17.96,21.001,20.986,115.7952]
[1674195448508,56.68,21.0,20.986,115.7952]
[1674195448721,17.96,20.999,20.986,115.7952]
[1674195448934,36.68,20.998,20.986,115.7952]
[1674195449122,37.96,20.997,20.986,115.7952]
[1674195449338,0.96,20.996,20.986,115.7952]
[1674195449544,0.96,20.995,20.986,115.7952]
[1674195449773,0.96,20.994,20.986,115.7952]
[1674195449981,0.96,20.993,20.986,115.7952]
[1674195450199,0.96,20.992,20.986,115.7952]
[1674195450393,0.96,20.991,20.986,115.7952]
[1674195450603,0.96,20.99,20.986,115.7952]
[1674195451246,0.96,20.989,20.986,115.7952]
[1674195451654,0.96,20.988,20.986,115.7952]
[1674195451985,0.96,20.987,20.986,115.7952]
[1674195452192,1.92,20.987,20.981,10.0]
[1674195452402,0.96,20.987,20.979,45.75]
[1674195452600,0.96,20.987,20.978,119.5328]
[1674195453227,0.96,20.987,20.978,109.5328]
[1674195453446,0.96,20.987,20.978,119.5328]
[1674195454613,0.96,20.987,20.978,155.2928]
[1674195455156,0.96,20.987,20.979,10.0]
[1674195457041,0.96,20.987,20.978,145.2928]
[1674195457258,0.96,20.987,20.972,149.8547]
[1674195457458,0.96,20.987,20.972,114.0847]
[1674195457672,0.96,20.987,20.973,10.0]
[1674195458386,37.96,20.987,20.973,10.0]
[1674195458601,0.96,20.986,20.973,10.0]
[1674195459025,0.96,20.985,20.973,10.0]
[1674195459229,0.96,20.984,20.973,10.0]
[1674195459460,0.96,20.983,20.973,10.0]
[1674195459784,0.96,20.983,20.978,10.0]
[1674195460827,0.96,20.983,20.974,10.0]
[1674195461031,0.96,20.982,20.974,10.0]
[1674195461247,0.96,20.981,20.974,10.0]
[1674195461461,0.96,20.98,20.974,10.0]
[1674195461649,0.96,20.979,20.974,10.0]
[1674195462487,0.96,20.978,20.972,149.8547]
[1674195462700,1.92,20.978,20.972,114.0847]
[1674195463351,35.74,20.986,20.973,10.0]
[1674195463665,18.92,20.985,20.973,10.0]
[1674195463886,1.92,20.985,20.973,10.0]
[1674195464724,1.92,20.985,20.978,10.0]
[1674195466911,35.73,20.993,20.979,35.75]
[1674195467138,35.72,20.998,20.979,35.75]
[1674195467347,20.0,20.997,20.98,114.6462]
[1674195467560,20.0,20.997,20.982,10.0]
[1674195468176,20.0,21.0,20.983,35.75]
[1674195468939,35.7,21.009,20.984,30.0]
[1674195469126,23.75576951,21.008,20.986,10.0]
[1674195469335,20.63,21.02,20.987,55.74]
[1674195469336,35.71,21.007,20.987,55.74]
[1674195469538,10.0,21.007,20.989,10.0]
[1674195469753,45.71,21.007,20.99,35.73]
[1674195469964,45.71,21.007,20.991,112.3441]
[1674195470189,10.0,21.006,20.992,10.0]
[1674195470818,33.75576951,21.006,20.992,10.0]
[1674195471345,33.75576951,21.006,20.991,122.3441]
[1674195471558,54.63,21.005,20.991,122.3441]
[1674195471869,54.63,21.005,20.991,112.3441]
[1674195472297,10.0,21.004,20.991,112.3441]
[1674195472604,10.0,21.004,20.985,35.74]
[1674195472605,10.0,21.002,20.985,35.74]
[1674195472819,38.92,21.001,20.985,35.74]
[1674195473428,38.92,21.001,20.986,10.0]
[1674195474166,10.0,21.0,20.986,10.0]
[1674195474385,38.92,20.999,20.986,10.0]
[1674195475851,18.92,20.999,20.986,10.0]
[1674195476064,18.92,20.999,20.987,35.74]
[1674195476272,1.92,20.999,20.988,20.0]
[1674195476494,1.92,20.999,20.988,136.6963]
[1674195477661,35.72,20.998,20.988,116.6963]
[1674195477878,10.0,20.996,20.988,116.6963]
[1674195478098,0.96,20.995,20.988,116.6963]
[1674195478304,18.92,20.995,20.988,116.6963]
[1674195478502,10.0,20.994,20.988,116.6963]
[1674195478712,18.92,20.993,20.988,116.6963]
[1674195479349,1.92,20.993,20.988,116.6963]
[1674195484932,35.72,20.999,20.989,10.0]
[1674195485136,10.0,21.002,20.989,10.0]
[1674195485340,35.71,21.005,20.989,45.74]
[1674195485548,35.71,21.005,20.989,156.9756]
[1674195485772,35.7,21.008,20.989,156.9756]
[1674195485962,20.0,21.007,20.989,156.9756]
[1674195486173,35.71,21.006,20.989,156.9756]
[1674195486589,17.96,21.005,20.989,156.9756]
[1674195486809,18.92,21.005,20.989,156.9756]
[1674195487451,35.71,21.006,20.989,156.9756]
[1674195487658,20.0,21.007,20.99,34.26615605]
[1674195487850,20.0,21.012,20.991,35.73]
[1674195488515,35.7,21.011,20.992,10.0]
[1674195488727,20.0,21.01,20.993,35.73]
[1674195488930,20.0,21.01,20.994,10.0]
[1674195489143,20.0,21.01,20.995,35.73]
[1674195489467,35.7,21.013,20.996,10.0]
[1674195489655,35.69,21.014,20.997,55.72]
[1674195489991,35.69,21.019,20.999,10.0]
[1674195490204,20.0,21.018,21.0,35.72]
[1674195490520,35.69,21.017,21.001,10.0]
[1674195490702,20.0,21.018,21.001,10.0]
[1674195490915,20.0,21.02,21.002,35.71]
[1674195491147,35.69,21.019,21.002,35.71]
[1674195491358,20.0,21.018,21.003,10.0]
[1674195491866,18.92,21.017,21.003,10.0]
[1674195492198,20.0,21.018,21.003,10.0]
[1674195492411,20.0,21.02,21.003,10.0]
[1674195492596,35.69,21.019,21.003,10.0]
[1674195492808,20.0,21.018,21.003,10.0]
[1674195493229,10.0,21.019,21.003,10.0]
[1674195493439,35.69,21.018,21.003,10.0]
[1674195493653,38.92,21.017,21.003,10.0]
[1674195496693,38.92,21.017,21.002,35.71]
[1674195496908,35.69,21.016,21.001,10.0]
[1674195497236,18.92,21.015,21.001,10.0]
[1674195497873,35.69,21.014,21.0,10.0]
[1674195498082,18.92,21.013,21.0,10.0]
[1674195498273,18.92,21.013,20.999,128.459]
[1674195498488,18.92,21.013,20.999,118.459]
[1674195498489,35.7,21.012,20.999,118.459]
[1674195498706,35.7,21.012,20.996,10.0]
[1674195498707,37.96,21.011,20.996,10.0]
[1674195498925,10.0,21.009,20.996,10.0]
[1674195499139,38.92,21.008,20.996,10.0]
[1674195500791,18.92,21.008,20.996,10.0]
[1674195501002,20.0,21.007,20.996,10.0]
[1674195501224,18.92,21.006,20.996,10.0]
[1674195502589,18.92,21.006,20.993,35.73]
[1674195503008,18.92,21.006,20.992,45.73]
[1674195503423,18.92,21.006,20.992,35.73]
[1674195503631,35.71,21.005,20.991,114.0539]
[1674195503847,18.92,21.004,20.991,114.0539]
[1674195504050,35.71,21.003,20.991,114.0539]
[1674195504265,28.92,21.002,20.991,114.0539]
[1674195504579,35.72,21.001,20.991,114.0539]
[1674195504788,18.92,21.0,20.991,114.0539]
[1674195505329,10.0,20.999,20.991,114.0539]
[1674195505514,18.92,20.998,20.991,114.0539]
[1674195508053,10.0,20.997,20.981,35.75]
[1674195508266,18.92,20.996,20.982,116.7712]
[1674195508680,10.0,20.995,20.982,116.7712]
[1674195508914,18.92,20.994,20.982,116.7712]
[1674195509553,35.73,20.993,20.982,116.7712]
[1674195509736,18.92,20.992,20.982,116.7712]
[1674195510385,1.92,20.992,20.982,116.7712]
[1674195513212,0.96,20.992,20.982,116.7712]
[1674195513436,20.57,21.01,20.983,13.83615605]
[1674195513749,20.0,21.001,20.985,10.0]
[1674195513970,55.72,21.001,20.985,10.0]
[1674195514157,10.0,21.0,20.985,10.0]
[1674195514678,20.0,20.999,20.985,10.0]
[1674195515646,18.92,20.998,20.985,10.0]
[1674195515837,20.0,20.997,20.985,10.0]
[1674195516048,18.92,20.996,20.985,10.0]
[1674195516679,18.92,20.996,20.984,10.0]
[1674195516884,18.92,20.996,20.983,35.75]
[1674195517117,45.73,20.995,20.982,116.7712]
[1674195517437,18.92,20.994,20.982,116.7712]
[1674195521760,18.92,20.994,20.978,35.76]
[1674195521926,10.0,20.992,20.978,35.76]
[1674195522139,18.92,20.991,20.978,10.0]
[1674195522575,17.0,20.99,20.978,10.0]
[1674195522895,1.92,20.989,20.978,10.0]
[1674195523107,0.96,20.988,20.978,10.0]
[1674195523304,1.92,20.991,20.978,10.0]
[1674195523826,0.96,20.991,20.978,10.0]
[1674195524043,35.72,20.996,20.978,23.83615605]
[1674195524370,35.72,20.999,20.979,35.75]
[1674195524689,10.0,20.997,20.98,10.0]
[1674195524884,10.0,20.997,20.981,35.75]
[1674195525083,40.31178,20.996,20.98,10.0]
[1674195525294,17.96,20.995,20.98,10.0]
[1674195525504,36.69,20.994,20.98,10.0]
[1674195525742,17.96,20.993,20.98,10.0]
[1674195525950,0.96,20.992,20.98,10.0]
[1674195526262,0.96,20.991,20.978,10.0]
[1674195526668,0.96,20.991,20.977,229.5941]
[1674195526887,0.96,20.991,20.978,20.0]
[1674195527088,17.96,20.991,20.978,20.0]
[1674195527294,0.96,20.99,20.978,20.0]
[1674195527504,0.96,20.989,20.979,10.0]
[1674195529953,0.96,20.989,20.978,65.76]
[1674195530140,0.96,20.989,20.978,20.0]
[1674195530662,17.96,20.989,20.978,20.0]
[1674195530873,0.96,20.988,20.978,20.0]
[1674195531092,0.96,20.988,20.978,30.0]
[1674195531931,0.96,20.988,20.979,10.0]
[1674195532136,0.96,20.988,20.977,113.2687]
[1674195532347,35.74,20.987,20.97,35.77]
[1674195532663,10.0,20.985,20.968,10.0]
[1674195532867,35.74,20.984,20.968,10.0]
[1674195533095,18.92,20.983,20.968,10.0]
[1674195534028,35.75,20.982,20.968,10.0]
[1674195534239,18.92,20.981,20.968,10.0]
[1674195534885,1.92,20.981,20.968,10.0]
[1674195535192,18.92,20.981,20.968,10.0]
[1674195535405,18.84174631,20.981,20.967,123.4284]
[1674195535606,17.0,20.98,20.968,20.0]
[1674195535820,0.96,20.979,20.969,10.0]
[1674195536024,18.84174631,20.981,20.969,10.0]
[1674195536340,18.84174631,20.981,20.968,20.0]
[1674195536550,17.0,20.98,20.968,20.0]
[1674195536761,0.96,20.979,20.968,20.0]
[1674195537195,20.96,20.979,20.967,113.4284]
[1674195537414,76.51576951,20.978,20.967,113.4284]
[1674195537723,10.0,20.976,20.967,113.4284]
[1674195537933,17.96,20.975,20.967,113.4284]
[1674195538253,0.96,20.974,20.967,113.4284]
[1674195538771,0.96,20.973,20.967,113.4284]
[1674195538985,0.96,20.972,20.967,113.4284]
[1674195539297,20.0,20.979,20.967,113.4284]
[1674195539520,20.0,20.98,20.967,123.4284]
[1674195539729,20.0,20.98,20.967,113.4284]
[1674195539944,45.75,20.979,20.967,113.4284]
[1674195540156,20.0,20.978,20.967,113.4284]
[1674195540553,18.92,20.977,20.967,113.4284]
[1674195541937,18.92,20.977,20.968,10.0]
[1674195542332,18.92,20.977,20.967,113.4284]
[1674195542548,18.92,20.977,20.968,20.0]
[1674195542774,18.92,20.977,20.968,30.0]
[1674195542986,35.75,20.982,20.968,30.0]
[1674195543176,10.0,20.985,20.968,30.0]
[1674195543177,35.74,20.984,20.968,30.0]
[1674195543383,35.74,20.984,20.969,10.0]
[1674195543823,35.74,20.984,20.968,20.0]
[1674195544030,40.33178,20.984,20.969,10.0]
[1674195544666,4.59178,20.984,20.97,35.77]
[1674195544883,35.73,20.991,20.971,20.0]
[1674195545104,35.73,20.994,20.972,35.77]
[1674195545409,35.72,20.996,20.973,20.0]
[1674195545592,35.72,20.996,20.975,10.0]
[1674195545803,35.72,20.996,20.976,55.76]
[1674195546030,4.59178,20.995,20.977,223.4456]
[1674195546248,35.73,20.994,20.978,55.76]
[1674195546440,40.32178,20.994,20.979,10.0]
[1674195547295,35.73,20.994,20.979,10.0]
[1674195547509,35.72,20.999,20.979,10.0]
[1674195547719,10.0,20.997,20.979,10.0]
[1674195547928,35.72,20.996,20.979,10.0]
[1674195548564,17.96,20.995,20.979,10.0]
[1674195548772,35.72,20.996,20.979,10.0]
[1674195548982,28.34754951,20.997,20.979,10.0]
[1674195549166,64.06754951,20.997,20.98,35.75]
[1674195549598,64.06754951,20.997,20.981,10.0]
[1674195549807,64.06754951,20.997,20.982,35.75]
[1674195550017,28.34754951,20.997,20.981,10.0]
[1674195550549,17.96,20.996,20.981,10.0]
[1674195550768,28.34754951,20.997,20.981,10.0]
[1674195550977,28.34754951,20.997,20.982,35.75]
[1674195551291,4.59178,20.997,20.982,35.75]
[1674195551489,4.59178,20.997,20.983,10.0]
[1674195552140,4.59178,20.997,20.982,35.75]
[1674195552339,58.27178,20.996,20.978,30.0]
[1674195552546,10.0,20.994,20.978,30.0]
[1674195552770,59.24178,20.993,20.978,29.5]
[1674195553207,10.0,20.992,20.978,29.5]
[1674195553389,54.65,20.991,20.977,223.4456]
[1674195553605,54.65,20.991,20.971,35.77]
[1674195553606,10.0,20.989,20.971,35.77]
[1674195553947,10.0,20.987,20.969,156.3924]
[1674195554127,40.33178,20.986,20.969,156.3924]
[1674195554459,22.55178,20.985,20.966,109.4447]
[1674195554663,10.0,20.989,20.966,109.4447]
[1674195554664,20.5,21.0,20.97,20.56]
[1674195554859,20.5,21.0,20.971,146.3924]
[1674195555074,20.5,21.0,20.971,159.84321087]
[1674195555287,35.72,20.999,20.971,159.84321087]
[1674195555514,10.0,20.998,20.972,23.45081087]
[1674195555699,35.72,20.997,20.973,55.76]
[1674195555915,35.72,20.997,20.974,10.0]
[1674195556136,35.72,20.997,20.975,35.76]
[1674195556341,35.72,20.997,20.975,69.21081087]
[1674195556548,10.0,20.996,20.976,10.0]
[1674195556750,10.0,20.996,20.977,55.76]
[1674195556751,35.73,20.995,20.977,55.76]
[1674195556966,35.73,20.995,20.975,35.76]
[1674195557179,10.0,20.993,20.972,35.77]
[1674195557406,10.0,20.991,20.972,10.0]
[1674195557605,74.65,20.99,20.972,10.0]
[1674195557813,74.65,20.99,20.972,59.22081087]
[1674195558247,38.92,20.99,20.972,59.22081087]
[1674195559398,35.74,20.989,20.972,59.22081087]
[1674195559604,38.92,20.988,20.972,59.22081087]
[1674195560436,38.92,20.988,20.972,45.77]
[1674195561500,20.96,20.988,20.972,59.22081087]
[1674195561687,20.0,20.987,20.972,59.22081087]
[1674195561905,20.0,20.992,20.972,59.22081087]
[1674195562547,20.0,20.994,20.972,59.22081087]
[1674195562744,35.73,20.993,20.972,59.22081087]
[1674195562952,0.96,20.992,20.973,20.0]
[1674195563171,35.72,20.997,20.974,36.72]
[1674195563387,35.72,21.001,20.975,20.96]
[1674195563609,10.0,21.0,20.976,45.76]
[1674195563805,55.72,20.999,20.977,20.0]
[1674195564019,55.72,20.999,20.978,45.76]
[1674195564547,55.72,20.999,20.979,23.45081087]
[1674195564873,10.0,20.998,20.981,10.0]
[1674195565062,35.72,20.997,20.981,10.0]
[1674195565269,18.92,20.996,20.981,10.0]
[1674195565823,1.92,20.996,20.981,10.0]
[1674195569787,35.72,20.998,20.981,10.0]
[1674195570003,20.0,20.997,20.982,35.75]
[1674195570221,20.0,20.999,20.982,35.75]
[1674195570423,20.0,20.999,20.983,10.0]
[1674195570634,35.71,21.003,20.984,35.74]
[1674195570845,35.71,21.006,20.985,10.0]
[1674195571055,35.71,21.006,20.986,55.74]
[1674195571494,35.71,21.006,20.987,10.0]
[1674195571796,35.71,21.006,20.989,10.0]
[1674195572007,17.96,21.005,20.989,10.0]
[1674195572219,36.67,21.004,20.989,10.0]
[1674195572433,17.96,21.003,20.989,10.0]
[1674195572760,0.96,21.002,20.989,10.0]
[1674195572944,0.96,21.001,20.989,10.0]
[1674195573156,0.96,21.003,20.989,10.0]
[1674195573481,0.96,21.003,20.991,10.0]
[1674195573902,0.96,21.003,20.992,35.73]
[1674195574324,0.96,21.003,20.991,10.0]
[1674195574547,0.96,21.002,20.991,10.0]
[1674195574761,0.96,21.001,20.991,10.0]
[1674195574970,0.96,21.0,20.991,10.0]
[1674195575613,0.96,20.999,20.991,10.0]
[1674195575796,0.96,20.998,20.991,10.0]
[1674195576131,0.96,21.0,20.991,10.0]
[1674195576342,20.0,21.008,20.991,10.0]
[1674195576551,0.96,21.007,20.992,35.73]
[1674195577079,0.96,21.007,20.993,10.0]
[1674195577283,20.96,21.009,20.995,10.0]
[1674195577687,17.96,21.008,20.995,10.0]
[1674195577895,20.0,21.007,20.995,10.0]
[1674195578131,20.0,21.009,20.995,10.0]
[1674195578329,35.7,21.012,20.995,10.0]
[1674195578523,35.69,21.018,20.996,55.72]
[1674195578739,20.0,21.017,20.996,69.18228468]
[1674195579290,20.0,21.019,20.997,10.0]
[1674195579480,35.69,21.018,20.998,35.72]
[1674195579693,20.0,21.017,20.998,35.72]
[1674195579902,18.92,21.016,20.999,10.0]
[1674195580097,18.92,21.016,21.0,35.72]
[1674195580312,18.92,21.016,21.001,10.0]
[1674195580751,0.96,21.016,21.001,10.0]
[1674195581072,0.96,21.016,21.001,119.3759]
[1674195581385,35.68,21.02,21.001,119.3759]
[1674195581595,35.68,21.024,21.001,119.3759]
[1674195581785,35.68,21.024,21.002,35.71]
[1674195581997,20.0,21.023,21.003,10.0]
[1674195582315,35.68,21.022,21.005,10.0]
[1674195582529,20.0,21.021,21.005,10.0]
[1674195583151,10.0,21.023,21.005,10.0]
[1674195583385,55.68,21.022,21.005,10.0]
[1674195583574,18.92,21.021,21.005,10.0]
[1674195583788,20.0,21.02,21.005,10.0]
[1674195584115,18.92,21.019,21.005,10.0]
[1674195584302,20.0,21.018,21.005,10.0]
[1674195584517,17.96,21.017,21.005,10.0]
[1674195584841,0.96,21.016,21.005,10.0]
[1674195587248,0.96,21.015,21.005,10.0]
[1674195587455,0.96,21.014,21.004,35.71]
[1674195587686,0.96,21.014,21.001,119.3759]
[1674195587879,0.96,21.013,21.001,119.3759]
[1674195588084,0.96,21.012,21.001,119.3759]
[1674195588298,0.96,21.011,21.001,119.3759]
[1674195588725,0.96,21.01,21.001,119.3759]
[1674195591684,0.96,21.01,21.002,35.71]
[1674195591865,0.96,21.01,21.003,10.0]
[1674195594629,0.96,21.009,21.003,10.0]
[1674195594846,0.96,21.008,21.003,10.0]
[1674195595564,17.0,21.015,21.003,10.0]
[1674195595773,1.92,21.014,21.003,10.0]
[1674195596835,1.92,21.014,21.002,10.0]
[1674195597674,1.92,21.014,21.001,109.3759]
[1674195597879,10.0,21.012,21.001,109.3759]
[1674195598100,18.92,21.011,21.001,109.3759]
[1674195598626,17.0,21.01,21.001,109.3759]
[1674195598822,1.92,21.009,21.002,10.0]
[1674195599250,35.69,21.015,21.002,10.0]
[1674195599888,35.69,21.018,21.002,10.0]
[1674195600073,20.0,21.017,21.002,45.71]
[1674195600283,35.68,21.023,21.003,20.0]
[1674195600509,35.67,21.029,21.004,35.71]
[1674195600730,35.66,21.031,21.005,20.0]
[1674195600927,35.66,21.032,21.006,35.71]
[1674195601144,58.00539538,21.031,21.007,30.0]
[1674195601333,35.67,21.03,21.008,35.7]
[1674195601543,35.67,21.03,21.009,10.0]
[1674195601544,10.0,21.028,21.009,10.0]
[1674195601753,55.67,21.027,21.009,10.0]
[1674195601976,35.67,21.027,21.009,10.0]
[1674195602176,17.0,21.026,21.009,10.0]
[1674195602403,35.68,21.025,21.01,119.5181]
[1674195602617,10.0,21.026,21.011,10.0]
[1674195603239,35.67,21.027,21.011,10.0]
[1674195604309,35.67,21.028,21.011,10.0]
[1674195604491,20.0,21.027,21.011,10.0]
[1674195604707,35.67,21.026,21.011,10.0]
[1674195604917,17.0,21.025,21.011,10.0]
[1674195605125,1.92,21.024,21.011,10.0]
[1674195605557,17.0,21.025,21.011,10.0]
[1674195605874,20.0,21.027,21.011,10.0]
[1674195606065,20.0,21.027,21.011,45.7]
[1674195607237,20.0,21.029,21.011,45.7]
[1674195607432,35.67,21.028,21.011,45.7]
[1674195607639,20.0,21.027,21.011,45.7]
[1674195607864,35.67,21.026,21.01,119.5181]
[1674195608071,10.0,21.025,21.01,119.5181]
[1674195608274,10.0,21.023,21.01,119.5181]
[1674195608910,18.92,21.022,21.01,119.5181]
[1674195610161,20.0,21.021,21.003,35.71]
[1674195610373,20.0,21.021,21.001,154.8973]
[1674195610374,56.25,21.02,21.001,154.8973]
[1674195610593,38.92,21.019,21.001,119.1773]
[1674195610816,45.69,21.018,21.001,119.1773]
[1674195611025,27.96,21.017,21.001,119.1773]
[1674195611347,36.65,21.016,21.001,119.1773]
[1674195611547,10.0,21.014,21.001,119.1773]
[1674195611757,18.92,21.013,21.001,119.1773]
[1674195613019,10.0,21.012,21.001,119.1773]
[1674195613237,18.92,21.011,21.001,119.1773]